[Event "GER-ch Youth U14w 2019"]
[Site "Willingen"]
[Date "2019.06.11"]
[Round "4.5"]
[White "Zoellner, Bente"]
[Black "Orlova, Alicia"]
[Result "0-1"]
[ECO "D11"]
[WhiteElo "1530"]
[BlackElo "1490"]
[Annotator "NA"]
[PlyCount "106"]
[EventDate "2019.06.07"]
[EventType "swiss"]
[EventRounds "9"]
[EventCountry "GER"]
[SourceTitle "playchess.com"]
[Source "ChessBase"]
[SourceQuality "1"]
[TimeControl "40/5400+30:1800+30"]

1. d4 {[%emt 0:00:00]} d5 {[%emt 0:00:00]} 2. c4 {[%emt 0:00:00]} c6 {[%emt 0:00:40]} 3. Nf3 {[%emt 0:00:10]} Nf6 {[%emt 0:00:44]} 4. Bg5 {[%emt 0:01:44]} Nbd7 {[%emt 0:01:47]} 5. cxd5 {[%emt 0:01:25]} cxd5 {[%emt 0:00:51]} 6. Nc3 {[%emt 0:00:41]} h6 {[%emt 0:00:37]} 7. Bh4 {[%emt 0:00:32]} g5 {[%emt 0:03:01]} 8. Bg3 {[%emt 0:00:44]} Bg7 {[%emt 0:03:39]} 9. e3 {[%emt 0:02:34]} Nb6 {[%emt 0:04:56]} 10. h3 {[%emt 0:06:27]} O-O {[%emt 0:03:24]} 11. Bd3 {[%emt 0:01:22]} Re8 {[%emt 0:02:03]} 12. Nb5 {[%emt 0:05:42]} Ne4 {[%emt 0:04:49]} 13. Bxe4 {[%emt 0:06:26]} dxe4 {[%emt 0:00:52]} 14. Nd2 {[%emt 0:03:37]} Nd5 {[%emt 0:03:38]} 15. Nc3 {[%emt 0:10:33]} Nxc3 {[%emt 0:04:39]} 16. bxc3 {[%emt 0:02:42]} f5 {[%emt 0:00:53]} 17. O-O {[%emt 0:01:40]} e5 {[%emt 0:02:12]} 18. Nb3 {[%emt 0:07:55]} f4 {[%emt 0:00:45]} 19. Bh2 {[%emt 0:01:19]} exd4 {[%emt 0:20:55]} 20. cxd4 {[%emt 0:03:19]} Qf6 {[%emt 0:03:40]} 21. Qh5 {[%emt 0:09:07]} Be6 {[%emt 0:02:31]} 22. Nc5 {[%emt 0:03:57]} Bf7 {[%emt 0:04:24]} 23. Qe2 {[%emt 0:02:18]} f3 {[%emt 0:01:49]} 24. gxf3 {[%emt 0:03:04]} exf3 {[%emt 0:00:11]} 25. Qd3 {[%emt 0:04:06]} b6 {[%emt 0:02:55]} 26. Be5 {[%emt 0:07:58]} Rxe5 {[%emt 0:07:37]} 27. dxe5 {[%emt 0:05:49]} Qxe5 {[%emt 0:00:21]} 28. Rfd1 {[%emt 0:01:41]} bxc5 {[%emt 0:02:04]} 29. Rac1 {[%emt 0:01:00]} Qe6 {[%emt 0:07:37]} 30. Qd7 {[%emt 0:01:14]} Qxd7 {[%emt 0:01:34]} 31. Rxd7 {[%emt 0:00:08]} Bxa2 {[%emt 0:00:33]} 32. Rc7 {[%emt 0:01:15]} c4 {[%emt 0:00:53]} 33. Rb7 {[%emt 0:01:47]} c3 {[%emt 0:00:33]} 34. Kf1 {[%emt 0:00:41]} a5 {[%emt 0:00:51]} 35. Rxg7+ {[%emt 0:02:11]} Kxg7 {[%emt 0:00:17]} 36. Rxc3 {[%emt 0:00:04]} Be6 {[%emt 0:00:26]} 37. e4 {[%emt 0:00:26]} Bxh3+ {[%emt 0:00:15]} 38. Kg1 {[%emt 0:00:13]} Bg2 {[%emt 0:01:49]} 39. Kh2 {[%emt 0:00:14]} a4 {[%emt 0:00:26]} 40. Ra3 {[%emt 0:00:11]} Kf6 {[%emt 0:00:13]} 41. Kg3 {[%emt 0:30:43]} h5 {[%emt 0:30:19]} 42. Kh2 {[%emt 0:00:39]} Ke5 {[%emt 0:00:25]} 43. Kg3 {[%emt 0:00:18]} h4+ {[%emt 0:00:24]} 44. Kh2 {[%emt 0:00:13]} Kxe4 {[%emt 0:00:23]} 45. Re3+ {[%emt 0:00:32]} Kd4 {[%emt 0:00:18]} 46. Re1 {[%emt 0:00:54]} a3 {[%emt 0:00:26]} 47. Rc1 {[%emt 0:00:29]} a2 {[%emt 0:00:14]} 48. Rc2 {[%emt 0:00:13]} Bf1 {[%emt 0:02:31]} 49. Kg1 {[%emt 0:03:01]} a1=Q {[%emt 0:00:59]} 50. Kh2 {[%emt 0:00:31]} Kd3 {[%emt 0:01:06]} 51. Rc5 {[%emt 0:00:29]} Ra5 {[%emt 0:03:51]} 52. Rxa5 {[%emt 0:00:56]} Qxa5 {[%emt 0:00:09]} 53. Kh1 {[%emt 0:00:30]} g4 {[%emt 0:00:27] normal} 0-1

[Event "GER-ch Youth U14w 2019"]
[Site "Willingen"]
[Date "2019.06.11"]
[Round "4.6"]
[White "Buchholz, Maja"]
[Black "Peglau, Mirjam"]
[Result "1-0"]
[ECO "A34"]
[WhiteElo "1657"]
[BlackElo "1746"]
[Annotator "NA"]
[PlyCount "119"]
[EventDate "2019.06.07"]
[EventType "swiss"]
[EventRounds "9"]
[EventCountry "GER"]
[SourceTitle "playchess.com"]
[Source "ChessBase"]
[SourceQuality "1"]
[TimeControl "40/5400+30:1800+30"]

1. c4 {[%emt 0:00:00]} c5 {[%emt 0:00:00]} 2. g3 {[%emt 0:00:00]} Nf6 {[%emt 0:00:00]} 3. Bg2 {[%emt 0:00:00]} d5 {[%emt 0:00:00]} 4. cxd5 {[%emt 0:00:00]} Nxd5 {[%emt 0:00:00]} 5. Nc3 {[%emt 0:00:14]} Nc7 {[%emt 0:00:11]} 6. e3 {[%emt 0:00:42]} e5 {[%emt 0:00:27]} 7. d3 {[%emt 0:00:45]} Be7 {[%emt 0:00:21]} 8. Nf3 {[%emt 0:01:03]} Nc6 {[%emt 0:00:12]} 9. O-O {[%emt 0:00:15]} O-O {[%emt 0:00:40]} 10. b3 {[%emt 0:00:46]} Be6 {[%emt 0:02:02]} 11. Bb2 {[%emt 0:00:29]} Qd7 {[%emt 0:01:17]} 12. Re1 {[%emt 0:02:57]} Rfd8 {[%emt 0:00:52]} 13. Ne2 {[%emt 0:01:37]} f6 {[%emt 0:03:03]} 14. d4 {[%emt 0:01:24]} cxd4 {[%emt 0:06:26]} 15. exd4 {[%emt 0:00:37]} e4 {[%emt 0:00:28]} 16. Nd2 {[%emt 0:00:54]} f5 {[%emt 0:00:04]} 17. a3 {[%emt 0:02:51]} Nb5 {[%emt 0:08:03]} 18. f3 {[%emt 0:10:59]} Nbxd4 {[%emt 0:14:39]} 19. Nxd4 {[%emt 0:01:49]} Nxd4 {[%emt 0:00:01]} 20. fxe4 {[%emt 0:01:37]} Bc5 {[%emt 0:01:51]} 21. Kh1 {[%emt 0:01:30]} fxe4 {[%emt 0:00:34]} 22. b4 {[%emt 0:01:21]} Bb6 {[%emt 0:01:55]} 23. Nxe4 {[%emt 0:04:27]} Bg4 {[%emt 0:13:04]} 24. Qd3 {[%emt 0:03:49]} Qa4 {[%emt 0:05:37]} 25. Qc4+ {[%emt 0:14:57]} Kh8 {[%emt 0:00:15]} 26. Rac1 {[%emt 0:04:36]} Rac8 {[%emt 0:08:52]} 27. Qf7 {[%emt 0:02:47]} Qb3 {[%emt 0:04:04]} 28. Qxb3 {[%emt 0:01:56]} Nxb3 {[%emt 0:00:01]} 29. Rxc8 {[%emt 0:00:36]} Rxc8 {[%emt 0:00:01]} 30. Nd6 {[%emt 0:01:03]} Rf8 {[%emt 0:00:27]} 31. Re7 {[%emt 0:00:31]} Bd4 {[%emt 0:02:12]} 32. Bxd4 {[%emt 0:01:35]} Nxd4 {[%emt 0:00:01]} 33. Rxb7 {[%emt 0:00:46]} a5 {[%emt 0:01:46]} 34. bxa5 {[%emt 0:00:44]} h6 {[%emt 0:00:09]} 35. a6 {[%emt 0:00:25]} Rf2 {[%emt 0:06:46]} 36. Ne4 {[%emt 0:01:33]} Rc2 {[%emt 0:02:44]} 37. a7 {[%emt 0:06:54]} Rc1+ {[%emt 0:02:29]} 38. Bf1 {[%emt 0:00:06]} Rxf1+ {[%emt 0:11:25]} 39. Kg2 {[%emt 0:00:08]} Rf8 {[%emt 0:01:07]} 40. Rb8 {[%emt 0:00:19]} Bf3+ {[%emt 0:00:05]} 41. Kh3 {[%emt 0:30:08]} Bxe4 {[%emt 0:31:21]} 42. Rxf8+ {[%emt 0:00:13]} Kh7 {[%emt 0:00:04]} 43. a8=Q Bxa8 {[%emt 0:00:19]} 44. Rxa8 {[%emt 0:00:20]} Kg6 {[%emt 0:00:44]} 45. Rd8 {[%emt 0:00:21]} Nc2 {[%emt 0:01:13]} 46. a4 {[%emt 0:00:10]} Ne3 {[%emt 0:00:08]} 47. Rd3 {[%emt 0:00:18]} Nc4 {[%emt 0:00:11]} 48. Kg2 {[%emt 0:00:37]} Kf5 {[%emt 0:00:08]} 49. Rc3 {[%emt 0:00:27]} Nd6 {[%emt 0:00:25]} 50. a5 {[%emt 0:00:11]} Ke6 {[%emt 0:00:41]} 51. Rc6 {[%emt 0:00:19]} Kd5 {[%emt 0:00:37]} 52. Rxd6+ {[%emt 0:00:25]} Kxd6 {[%emt 0:00:01]} 53. Kf3 {[%emt 0:00:10]} Kc5 {[%emt 0:00:09]} 54. Kg4 {[%emt 0:00:10]} g6 {[%emt 0:00:20]} 55. Kf4 {[%emt 0:00:13]} Kb5 {[%emt 0:00:06]} 56. Ke5 {[%emt 0:00:04]} Kxa5 {[%emt 0:01:22]} 57. Kf6 {[%emt 0:00:06]} g5 {[%emt 0:00:17]} 58. Kg6 {[%emt 0:00:25]} Kb5 {[%emt 0:00:15]} 59. Kxh6 {[%emt 0:00:06]} g4 {[%emt 0:00:07]} 60. Kg5 {[%emt 0:00:06] normal} 1-0

[Event "GER-ch Youth U14w 2019"]
[Site "Willingen"]
[Date "2019.06.11"]
[Round "4.7"]
[White "Schmidt, Pauline"]
[Black "Becker, Linda"]
[Result "1-0"]
[ECO "D35"]
[WhiteElo "1620"]
[BlackElo "1683"]
[Annotator "NA"]
[PlyCount "113"]
[EventDate "2019.06.07"]
[EventType "swiss"]
[EventRounds "9"]
[EventCountry "GER"]
[SourceTitle "playchess.com"]
[Source "ChessBase"]
[SourceQuality "1"]
[TimeControl "40/5400+30:1800+30"]

1. c4 {[%emt 0:00:00]} e6 {[%emt 0:00:00]} 2. Nc3 {[%emt 0:00:00]} d5 {[%emt 0:00:00]} 3. d4 {[%emt 0:00:00]} Nf6 {[%emt 0:00:13]} 4. Bf4 {[%emt 0:00:12]} c5 {[%emt 0:00:47]} 5. cxd5 {[%emt 0:03:24]} exd5 {[%emt 0:00:23]} 6. e3 {[%emt 0:02:30]} Nc6 {[%emt 0:00:59]} 7. Bb5 {[%emt 0:09:21]} Qb6 {[%emt 0:05:43]} 8. Qb3 {[%emt 0:11:56]} cxd4 {[%emt 0:07:00]} 9. Bxc6+ {[%emt 0:00:44]} bxc6 {[%emt 0:00:36]} 10. Qxb6 {[%emt 0:01:38]} axb6 {[%emt 0:00:07]} 11. exd4 {[%emt 0:00:05]} Bf5 {[%emt 0:03:14]} 12. Nf3 {[%emt 0:03:00]} Bb4 {[%emt 0:04:39]} 13. O-O {[%emt 0:07:11]} O-O {[%emt 0:01:56]} 14. Ne5 {[%emt 0:05:23]} Rfc8 {[%emt 0:03:14]} 15. Ne2 {[%emt 0:02:16]} Nd7 {[%emt 0:03:29]} 16. Ng3 {[%emt 0:02:28]} Be6 {[%emt 0:02:52]} 17. a3 {[%emt 0:02:10]} Nxe5 {[%emt 0:03:33]} 18. Bxe5 {[%emt 0:01:43]} Be7 {[%emt 0:01:08]} 19. Rfe1 {[%emt 0:01:48]} c5 {[%emt 0:01:28]} 20. Rac1 {[%emt 0:01:27]} Bg5 {[%emt 0:08:15]} 21. Rc2 {[%emt 0:04:44]} Bd7 {[%emt 0:06:48]} 22. Ne2 {[%emt 0:03:45]} Bf5 {[%emt 0:02:14]} 23. f4 {[%emt 0:05:22]} Bxf4 {[%emt 0:00:59]} 24. Nxf4 {[%emt 0:00:22]} Bxc2 {[%emt 0:00:10]} 25. Nxd5 {[%emt 0:00:30]} Ra7 {[%emt 0:04:16]} 26. Nxb6 {[%emt 0:00:41]} Re8 {[%emt 0:02:15]} 27. Rc1 {[%emt 0:03:43]} cxd4 {[%emt 0:04:48]} 28. Bxd4 {[%emt 0:01:21]} Bg6 {[%emt 0:02:12]} 29. a4 {[%emt 0:02:41]} f6 {[%emt 0:00:58]} 30. b4 {[%emt 0:01:02]} Re4 {[%emt 0:04:06]} 31. Bc5 {[%emt 0:00:27]} Be8 {[%emt 0:02:21]} 32. a5 {[%emt 0:00:40]} Rc7 {[%emt 0:01:42]} 33. Nc4 {[%emt 0:05:59]} Bb5 {[%emt 0:05:01]} 34. Nb6 {[%emt 0:03:44]} Rc6 {[%emt 0:02:41]} 35. Ra1 {[%emt 0:01:33]} Rce6 {[%emt 0:03:10]} 36. Na8 {[%emt 0:03:41]} Bc6 {[%emt 0:05:59]} 37. Nc7 {[%emt 0:00:35]} R6e5 {[%emt 0:01:07]} 38. a6 {[%emt 0:01:36]} Re2 {[%emt 0:00:29]} 39. g3 {[%emt 0:01:34]} Rg2+ {[%emt 0:00:28]} 40. Kf1 {[%emt 0:00:27]} Rf5+ {[%emt 0:00:29]} 41. Ke1 {[%emt 0:30:43]} Rxh2 {[%emt 0:31:20]} 42. Ra3 {[%emt 0:01:31]} Re5+ {[%emt 0:00:00]} 43. Kd1 {[%emt 0:00:00]} Be4 {[%emt 0:00:00]} 44. a7 {[%emt 0:00:00]} Bc2+ {[%emt 0:00:00]} 45. Kc1 {[%emt 0:00:00]} Re1+ {[%emt 0:00:00]} 46. Kb2 {[%emt 0:00:00]} Be4+ {[%emt 0:00:00]} 47. Kc3 {[%emt 0:00:00]} Rc2+ {[%emt 0:00:00]} 48. Kd4 {[%emt 0:00:00]} Rd2+ {[%emt 0:00:00]} 49. Kc4 {[%emt 0:00:00]} Rc1+ {[%emt 0:00:00]} 50. Kb5 {[%emt 0:00:00]} Rd8 {[%emt 0:00:00]} 51. Kb6 {[%emt 0:00:00]} g5 {[%emt 0:00:00]} 52. Re3 {[%emt 0:00:00]} f5 {[%emt 0:00:00]} 53. Ne6 {[%emt 0:00:00]} Rd6+ {[%emt 0:03:03]} 54. Bxd6 {[%emt 0:00:00]} Rc6+ {[%emt 0:00:06]} 55. Kb5 {[%emt 0:00:00]} Rxd6 {[%emt 0:00:25]} 56. Rxe4 {[%emt 0:00:00]} fxe4 {[%emt 0:00:12]} 57. a8=Q+ {[%emt 0:00:00] normal} 1-0

[Event "GER-ch Youth U14w 2019"]
[Site "Willingen"]
[Date "2019.06.11"]
[Round "4.8"]
[White "Albayrak, Nese Pinar"]
[Black "Kalina, Lena"]
[Result "1/2-1/2"]
[ECO "B35"]
[WhiteElo "1530"]
[BlackElo "1687"]
[Annotator "NA"]
[PlyCount "145"]
[EventDate "2019.06.07"]
[EventType "swiss"]
[EventRounds "9"]
[EventCountry "GER"]
[SourceTitle "playchess.com"]
[Source "ChessBase"]
[SourceQuality "1"]
[TimeControl "40/5400+30:1800+30"]

1. e4 {[%emt 0:00:00]} c5 {[%emt 0:00:00]} 2. Nf3 {[%emt 0:00:00]} g6 {[%emt 0:00:27]} 3. d4 {[%emt 0:00:00]} cxd4 {[%emt 0:00:04]} 4. Nxd4 {[%emt 0:00:00]} Nc6 {[%emt 0:00:10]} 5. Nc3 {[%emt 0:00:30]} Bg7 {[%emt 0:00:11]} 6. Be3 {[%emt 0:00:26]} Nf6 {[%emt 0:00:26]} 7. Bc4 {[%emt 0:00:50]} O-O {[%emt 0:00:08]} 8. Bb3 {[%emt 0:00:43]} Qa5 {[%emt 0:01:00]} 9. f3 {[%emt 0:02:22]} d5 {[%emt 0:13:54]} 10. exd5 {[%emt 0:12:31]} Nb4 {[%emt 0:01:16]} 11. Qd2 {[%emt 0:04:43]} Nbxd5 {[%emt 0:03:45]} 12. Nxd5 {[%emt 0:16:16]} Qxd2+ {[%emt 0:00:31]} 13. Bxd2 {[%emt 0:05:37]} Nxd5 {[%emt 0:00:23]} 14. Bxd5 {[%emt 0:00:40]} Bxd4 {[%emt 0:00:31]} 15. c3 {[%emt 0:00:34]} Bg7 {[%emt 0:01:05]} 16. O-O-O {[%emt 0:00:54]} e6 {[%emt 0:02:35]} 17. Bc4 {[%emt 0:01:53]} Bd7 {[%emt 0:04:43]} 18. h4 {[%emt 0:02:25]} h5 {[%emt 0:02:16]} 19. g4 {[%emt 0:02:18]} Bc6 {[%emt 0:03:42]} 20. Rh3 {[%emt 0:04:03]} Rac8 {[%emt 0:02:22]} 21. Bb3 {[%emt 0:03:26]} hxg4 {[%emt 0:11:27]} 22. fxg4 {[%emt 0:00:33]} Bb5 {[%emt 0:02:31]} 23. h5 {[%emt 0:04:05]} Be2 {[%emt 0:02:52]} 24. Rg1 {[%emt 0:02:32]} Bd4 {[%emt 0:02:33]} 25. Be3 {[%emt 0:02:17]} Bxe3+ {[%emt 0:05:10]} 26. Rxe3 {[%emt 0:00:08]} Bc4 {[%emt 0:01:19]} 27. hxg6 {[%emt 0:02:51]} fxg6 {[%emt 0:03:25]} 28. Bxc4 {[%emt 0:02:27]} Rxc4 {[%emt 0:00:12]} 29. Rxe6 {[%emt 0:00:14]} Kf7 {[%emt 0:01:48]} 30. Rd6 {[%emt 0:01:14]} Rc7 {[%emt 0:05:50]} 31. Rf1+ {[%emt 0:01:23]} Ke7 {[%emt 0:00:48]} 32. Rxf8 {[%emt 0:03:20]} Kxf8 {[%emt 0:01:46]} 33. Rxg6 {[%emt 0:00:18]} Kf7 {[%emt 0:01:30]} 34. Rd6 {[%emt 0:02:19]} Re7 {[%emt 0:05:07]} 35. Kd2 {[%emt 0:03:08]} b6 {[%emt 0:02:27]} 36. b4 {[%emt 0:06:02]} Rc7 {[%emt 0:01:50]} 37. Kd3 {[%emt 0:02:16]} b5 {[%emt 0:01:41]} 38. Rd5 {[%emt 0:04:59]} a6 {[%emt 0:01:14]} 39. Rd6 {[%emt 0:00:59]} Ra7 {[%emt 0:01:46]} 40. a3 {[%emt 0:02:21]} a5 {[%emt 0:01:54]} 41. Rb6 {[%emt 0:33:23]} axb4 {[%emt 0:31:28]} 42. axb4 {[%emt 0:00:21]} Rd7+ {[%emt 0:00:20]} 43. Ke4 {[%emt 0:02:37]} Rc7 {[%emt 0:00:48]} 44. Kd4 {[%emt 0:00:00]} Rc4+ {[%emt 0:00:00]} 45. Kd3 {[%emt 0:00:00]} Rxg4 {[%emt 0:00:00]} 46. Rxb5 {[%emt 0:00:00]} Ke6 {[%emt 0:00:00]} 47. Rc5 {[%emt 0:00:00]} Kd6 {[%emt 0:00:00]} 48. Kc2 {[%emt 0:00:00]} Rg8 {[%emt 0:00:00]} 49. Kb3 {[%emt 0:00:00]} Ra8 {[%emt 0:00:00]} 50. Ra5 {[%emt 0:00:00]} Rb8 {[%emt 0:00:00]} 51. Ra6+ {[%emt 0:00:00]} Kc7 {[%emt 0:00:00]} 52. c4 {[%emt 0:00:00]} Kb7 {[%emt 0:00:00]} 53. b5 {[%emt 0:00:00]} Rh8 {[%emt 0:00:00]} 54. Rd6 {[%emt 0:00:00]} Rh3+ {[%emt 0:00:00]} 55. Kb4 {[%emt 0:00:00]} Rh4 {[%emt 0:00:00]} 56. Kc5 {[%emt 0:00:00]} Rh5+ {[%emt 0:00:00]} 57. Rd5 {[%emt 0:00:00]} Rh6 {[%emt 0:00:00]} 58. Rd7+ {[%emt 0:00:00]} Kc8 {[%emt 0:00:00]} 59. Rd6 {[%emt 0:00:00]} Rh7 {[%emt 0:00:00]} 60. Kb6 {[%emt 0:00:00]} Rb7+ {[%emt 0:02:40]} 61. Ka6 {[%emt 0:00:14]} Rh7 {[%emt 0:01:04]} 62. b6 {[%emt 0:00:57]} Rg7 {[%emt 0:02:01]} 63. Rc6+ {[%emt 0:02:31]} Kb8 {[%emt 0:01:11]} 64. b7 {[%emt 0:02:54]} Rxb7 {[%emt 0:01:16]} 65. Rb6 {[%emt 0:00:33]} Ka8 {[%emt 0:00:14]} 66. c5 {[%emt 0:00:41]} Rc7 {[%emt 0:06:18]} 67. c6 {[%emt 0:00:45]} Rh7 {[%emt 0:01:12]} 68. Rb5 {[%emt 0:01:06]} Ra7+ {[%emt 0:01:47]} 69. Kb6 {[%emt 0:00:18]} Kb8 {[%emt 0:00:36]} 70. Kc5+ {[%emt 0:00:30]} Kc7 {[%emt 0:00:25]} 71. Kd5 {[%emt 0:00:13]} Ra1 {[%emt 0:01:37] normal} 72. Rb7+ {[%emt 0:01:27]} Kc8 {[%emt 0:00:12]} 73. Rb4 1/2-1/2

[Event "GER-ch Youth U14w 2019"]
[Site "Willingen"]
[Date "2019.06.11"]
[Round "4.9"]
[White "Wagner, Margarethe"]
[Black "Gerber, Anna Sophie"]
[Result "1/2-1/2"]
[ECO "B48"]
[WhiteElo "1741"]
[BlackElo "1473"]
[Annotator "NA"]
[PlyCount "100"]
[EventDate "2019.06.07"]
[EventType "swiss"]
[EventRounds "9"]
[EventCountry "GER"]
[SourceTitle "playchess.com"]
[Source "ChessBase"]
[SourceQuality "1"]
[TimeControl "40/5400+30:1800+30"]

1. e4 {[%emt 0:00:00]} c5 {[%emt 0:00:00]} 2. Nf3 {[%emt 0:00:00]} e6 {[%emt 0:00:00]} 3. d4 {[%emt 0:00:00]} cxd4 {[%emt 0:00:21]} 4. Nxd4 {[%emt 0:00:00]} Nc6 {[%emt 0:00:15]} 5. Nc3 {[%emt 0:00:36]} Qc7 {[%emt 0:00:40]} 6. Be3 {[%emt 0:02:17]} Nf6 {[%emt 0:03:16]} 7. Be2 {[%emt 0:06:30]} Be7 {[%emt 0:01:43]} 8. O-O {[%emt 0:03:15]} a6 {[%emt 0:01:28]} 9. Kh1 {[%emt 0:03:40]} O-O {[%emt 0:04:13]} 10. f4 {[%emt 0:04:03]} d6 {[%emt 0:04:13]} 11. Nxc6 {[%emt 0:04:25]} Qxc6 {[%emt 0:04:14]} 12. Bf3 {[%emt 0:01:51]} Qc7 {[%emt 0:01:05]} 13. Qe1 {[%emt 0:02:28]} Bd7 {[%emt 0:04:24]} 14. Qg3 {[%emt 0:06:46]} Kh8 {[%emt 0:03:12]} 15. e5 {[%emt 0:03:46]} dxe5 {[%emt 0:05:47]} 16. fxe5 {[%emt 0:00:19]} Ne8 {[%emt 0:03:25]} 17. Rac1 {[%emt 0:08:30]} Bc5 {[%emt 0:13:53]} 18. Bxc5 {[%emt 0:03:44]} Qxc5 {[%emt 0:03:12]} 19. Bxb7 {[%emt 0:08:08]} Rb8 {[%emt 0:01:33]} 20. Bxa6 {[%emt 0:01:43]} Rxb2 {[%emt 0:02:24]} 21. Be2 {[%emt 0:04:24]} Bc6 {[%emt 0:05:36]} 22. Bh5 {[%emt 0:05:46]} g6 {[%emt 0:06:06]} 23. Be2 {[%emt 0:02:58]} Ng7 {[%emt 0:01:14]} 24. Bg4 {[%emt 0:01:36]} Nf5 {[%emt 0:03:30]} 25. Bxf5 {[%emt 0:00:33]} exf5 {[%emt 0:00:11]} 26. Rfe1 {[%emt 0:01:07]} Re8 {[%emt 0:01:12]} 27. Qe3 {[%emt 0:03:25]} Qxe3 {[%emt 0:01:34]} 28. Rxe3 {[%emt 0:00:01]} Re6 {[%emt 0:00:31]} 29. Re2 {[%emt 0:01:25]} Kg7 {[%emt 0:01:54]} 30. Kg1 {[%emt 0:00:21]} f6 {[%emt 0:01:02]} 31. exf6+ {[%emt 0:00:44]} Kxf6 {[%emt 0:00:30]} 32. Rxe6+ {[%emt 0:00:48]} Kxe6 {[%emt 0:00:02]} 33. Kf2 {[%emt 0:02:19]} Bd5 {[%emt 0:02:18]} 34. a3 {[%emt 0:04:00]} Bb3 {[%emt 0:02:09]} 35. Ne2 {[%emt 0:03:34]} Bc4 {[%emt 0:02:35]} 36. Nc3 {[%emt 0:06:10]} Bb3 {[%emt 0:01:25]} 37. Ne2 {[%emt 0:01:17]} Bc4 {[%emt 0:00:25]} 38. a4 {[%emt 0:01:43]} Bxe2 {[%emt 0:00:57]} 39. Kxe2 {[%emt 0:00:05]} Ra2 {[%emt 0:00:10]} 40. Kd3 {[%emt 0:00:10]} Rxa4 {[%emt 0:00:30]} 41. c4 {[%emt 0:32:41]} Kd6 {[%emt 0:31:09]} 42. Kd4 {[%emt 0:00:00]} Ra2 {[%emt 0:00:00]} 43. Rg1 {[%emt 0:00:00]} Re2 {[%emt 0:00:00]} 44. Kd3 {[%emt 0:00:00]} Re4 {[%emt 0:00:00]} 45. Rb1 {[%emt 0:00:00]} Rg4 {[%emt 0:00:00]} 46. Rb2 {[%emt 0:00:00]} Kc5 {[%emt 0:00:00]} 47. Rb5+ {[%emt 0:00:00]} Kc6 {[%emt 0:00:00]} 48. Rb2 {[%emt 0:00:00]} Kc5 {[%emt 0:00:00]} 49. Rb5+ {[%emt 0:00:00]} Kc6 {[%emt 0:00:00] normal} 50. Rb2 {[%emt 0:00:00]} Kc5 {[%emt 0:00:00] normal} 1/2-1/2

[Event "GER-ch Youth U14w 2019"]
[Site "Willingen"]
[Date "2019.06.11"]
[Round "4.10"]
[White "Liu, Sijia Anna"]
[Black "Berghold, Lotta"]
[Result "1-0"]
[ECO "B00"]
[WhiteElo "1705"]
[BlackElo "1471"]
[Annotator "NA"]
[PlyCount "107"]
[EventDate "2019.06.07"]
[EventType "swiss"]
[EventRounds "9"]
[EventCountry "GER"]
[SourceTitle "playchess.com"]
[Source "ChessBase"]
[SourceQuality "1"]
[TimeControl "40/5400+30:1800+30"]

1. e4 b6 {[%emt 0:00:00]} 2. d4 {[%emt 0:00:00]} Bb7 {[%emt 0:00:00]} 3. Bd3 {[%emt 0:00:01]} e6 {[%emt 0:00:00]} 4. Nf3 {[%emt 0:00:19]} Nf6 {[%emt 0:07:26]} 5. Qe2 {[%emt 0:00:50]} d6 {[%emt 0:15:01]} 6. O-O {[%emt 0:04:30]} Be7 {[%emt 0:04:37]} 7. Nbd2 {[%emt 0:05:53]} O-O {[%emt 0:03:40]} 8. Re1 {[%emt 0:02:08]} Re8 {[%emt 0:05:40]} 9. Nf1 {[%emt 0:04:37]} d5 {[%emt 0:09:48]} 10. e5 {[%emt 0:01:35]} Nfd7 {[%emt 0:00:05]} 11. c3 {[%emt 0:08:33]} c5 {[%emt 0:02:28]} 12. Ng3 {[%emt 0:04:11]} Nc6 {[%emt 0:04:12]} 13. a3 {[%emt 0:10:20]} f6 {[%emt 0:09:00]} 14. Bb1 {[%emt 0:04:32]} cxd4 {[%emt 0:08:34]} 15. cxd4 {[%emt 0:05:40]} fxe5 {[%emt 0:01:06]} 16. dxe5 {[%emt 0:01:00]} Nf8 {[%emt 0:01:36]} 17. b4 {[%emt 0:07:02]} a6 {[%emt 0:05:14]} 18. Rd1 {[%emt 0:05:01]} Qc7 {[%emt 0:02:16]} 19. Bb2 {[%emt 0:05:16]} b5 {[%emt 0:03:35]} 20. Bd3 {[%emt 0:03:48]} Rac8 {[%emt 0:00:53]} 21. Rac1 {[%emt 0:03:01]} Qb8 {[%emt 0:00:15]} 22. Qe3 {[%emt 0:02:07]} Rc7 {[%emt 0:04:27]} 23. h4 {[%emt 0:01:58]} Rec8 {[%emt 0:02:46]} 24. Ng5 Bxg5 {[%emt 0:02:06]} 25. Qxg5 {[%emt 0:04:44]} Nd8 {[%emt 0:02:28]} 26. Nh5 {[%emt 0:02:24]} Kh8 {[%emt 0:01:06]} 27. Rxc7 {[%emt 0:02:14]} Qxc7 {[%emt 0:00:40]} 28. Rc1 {[%emt 0:02:32]} Qd7 {[%emt 0:00:05]} 29. Rxc8 {[%emt 0:00:33]} Bxc8 {[%emt 0:00:06]} 30. Nxg7 {[%emt 0:01:39]} Qxg7 {[%emt 0:00:42]} 31. Qxd8 {[%emt 0:00:11]} Bb7 {[%emt 0:00:51]} 32. Qf6 {[%emt 0:02:42]} Kg8 {[%emt 0:01:17]} 33. Qxg7+ {[%emt 0:00:47]} Kxg7 {[%emt 0:00:06]} 34. Kf1 {[%emt 0:00:40]} Ng6 {[%emt 0:00:28]} 35. g3 {[%emt 0:00:33]} Ne7 {[%emt 0:00:24]} 36. Ke2 {[%emt 0:00:44]} Nc6 {[%emt 0:01:52]} 37. Ke3 {[%emt 0:00:55]} Bc8 {[%emt 0:00:31]} 38. Kf4 {[%emt 0:01:21]} Bd7 {[%emt 0:00:31]} 39. Kg5 {[%emt 0:01:33]} h6+ {[%emt 0:00:21]} 40. Kf4 {[%emt 0:00:46]} Be8 {[%emt 0:00:12]} 41. g4 {[%emt 0:32:50]} Bg6 {[%emt 0:31:22]} 42. Bxg6 {[%emt 0:00:00]} Kxg6 {[%emt 0:00:00]} 43. h5+ {[%emt 0:00:00]} Kg7 {[%emt 0:00:00]} 44. g5 {[%emt 0:00:00]} Nd8 {[%emt 0:00:00]} 45. g6 {[%emt 0:00:00]} Nc6 {[%emt 0:00:00]} 46. Ke3 {[%emt 0:00:00]} Kf8 {[%emt 0:00:00]} 47. f4 {[%emt 0:00:00]} Ke7 {[%emt 0:00:00]} 48. Bc1 {[%emt 0:00:00]} Kf8 {[%emt 0:00:00]} 49. Bd2 {[%emt 0:00:00]} Kg7 {[%emt 0:00:00]} 50. Be1 {[%emt 0:00:00]} Kf8 {[%emt 0:00:00]} 51. Bh4 {[%emt 0:00:00]} Kg8 {[%emt 0:00:00]} 52. Bf6 {[%emt 0:00:00]} Kf8 {[%emt 0:00:00]} 53. f5 {[%emt 0:00:00]} exf5 {[%emt 0:00:00]} 54. e6 {[%emt 0:00:00] normal} 1-0